fUST/lending_fUST_20240502
["ID","MTS","AMOUNT","RATE_DAILY","PERIOD"]
[325243540,1714629033131,-151.0,0.00052875,7]
[325243541,1714629033141,-151.0,0.00052875,7]
[325243542,1714629033150,-151.0,0.00052875,7]
[325243543,1714629033159,-151.0,0.00052875,7]
[325243544,1714629033168,-151.0,0.00052875,7]
[325243545,1714629033179,-151.0,0.00052875,7]
[325243546,1714629033188,-151.0,0.00052875,7]
[325243547,1714629033197,-151.0,0.00052875,7]
[325243548,1714629033206,-151.0,0.00052875,7]
[325243549,1714629033215,-151.0,0.00052875,7]
[325243550,1714629033224,-151.0,0.00052875,7]
[325243551,1714629033234,-151.0,0.00052875,7]
[325243552,1714629033243,-151.0,0.00052875,7]
[325243553,1714629033252,-151.0,0.00052875,7]
[325243554,1714629033261,-151.0,0.00052875,7]
[325243555,1714629033270,-151.0,0.00052875,7]
[325243556,1714629033281,-151.0,0.00052875,7]
[325243557,1714629033290,-999.0,0.00052875,120]
[325243558,1714629033299,-999.0,0.00052875,120]
[325243559,1714629033308,-214.75721568,0.00052875,120]
[325243560,1714629033317,-151.0,0.00052875,7]
[325243561,1714629033327,-151.0,0.00052875,7]
[325243562,1714629033336,-151.0,0.00052875,7]
[325243563,1714629033345,-151.0,0.00052875,7]
[325243564,1714629033354,-151.0,0.00052875,7]
[325243565,1714629033364,-151.0,0.00052875,7]
[325243566,1714629033373,-151.0,0.00052875,7]
[325243567,1714629033382,-151.0,0.00052875,7]
[325243568,1714629033391,-151.0,0.00052875,7]
[325243569,1714629033401,-151.0,0.00052875,7]
[325243570,1714629033410,-265.3724,0.00052875,7]
[325243571,1714629033419,-265.3724,0.00052875,7]
[325243572,1714629033429,-265.3724,0.00052875,7]
[325243573,1714629033440,-265.3724,0.00052875,7]
[325243574,1714629033450,-186.244492,0.00052875,7]
[325243575,1714629033461,-186.244492,0.00052875,7]
[325243576,1714629033470,-186.244492,0.00052875,7]
[325243577,1714629033479,-186.244492,0.00052875,7]
[325243578,1714629033488,-151.0,0.00052875,7]
[325243579,1714629033497,-151.0,0.00052875,7]
[325243580,1714629033506,-151.0,0.00052875,7]
[325243581,1714629033515,-151.0,0.00052875,7]
[325243582,1714629033524,-151.0,0.00052875,7]
[325243583,1714629033534,-151.0,0.00052875,7]
[325243584,1714629033543,-151.0,0.00052875,7]
[325243585,1714629033552,-151.0,0.00052875,7]
[325243586,1714629033561,-151.0,0.00052875,7]
[325243587,1714629033571,-151.0,0.00052875,7]
[325243588,1714629033580,-151.0,0.00052875,7]
[325243589,1714629033589,-151.0,0.00052875,7]
[325243590,1714629033598,-151.0,0.00052875,7]
[325243591,1714629033609,-151.0,0.00052875,7]
[325243592,1714629033618,-2000.0,0.00052876,2]
[325243593,1714629033628,-303.86860129,0.00052876,15]
[325243594,1714629033637,-211.09513997,0.00052876,30]
[325243595,1714629033648,-514.9016814,0.00052876,120]
[325243596,1714629033659,-501.65602816,0.00052876,120]
[325243597,1714629033669,-212.9390384,0.00052876,120]
[325243598,1714629033679,-503.10879227,0.00052876,120]
[325243599,1714629033688,-500.0,0.00052876,120]
[325243600,1714629033697,-506.21421155,0.00052876,120]
[325243601,1714629033707,-500.0,0.00052876,120]
[325243602,1714629033716,-500.0,0.00052876,120]
[325243603,1714629033725,-500.0,0.00052876,120]
[325243604,1714629033735,-151.0,0.00052876,7]
[325243605,1714629033744,-151.0,0.00052876,7]
[325243606,1714629033753,-186.155749,0.00052876,7]
[325243607,1714629033763,-500.0,0.00052876,120]
[325243608,1714629033772,-500.0,0.00052876,120]
[325243609,1714629033781,-151.0,0.00052876,7]
[325243610,1714629033790,-151.0,0.00052876,7]
[325243611,1714629033799,-151.0,0.00052876,7]
[325243612,1714629033808,-152.664918,0.00052876,7]
[325243613,1714629033817,-500.0,0.00052876,120]
[325243614,1714629033827,-500.0,0.00052876,120]
[325243615,1714629033836,-151.0,0.00052876,7]
[325243616,1714629033845,-151.0,0.00052876,7]
[325243617,1714629033854,-151.0,0.00052876,7]
[325243618,1714629033864,-151.0,0.00052876,7]
[325243619,1714629033873,-151.0,0.00052876,7]
[325243620,1714629033883,-151.0,0.00052876,7]
[325243621,1714629033891,-151.0,0.00052876,7]
[325243622,1714629033900,-151.0,0.00052876,7]
[325243623,1714629033910,-151.0,0.00052876,7]
[325243624,1714629033919,-500.0,0.00052876,120]
[325243625,1714629033929,-267.765277,0.00052876,120]
[325243626,1714629033938,-500.0,0.00052876,120]
[325243627,1714629033947,-500.0,0.00052876,120]
[325243628,1714629033956,-500.0,0.00052876,120]
[325243629,1714629033965,-526.50722113,0.00052876,120]
[325243630,1714629033975,-500.0,0.00052876,120]
[325243631,1714629033984,-509.23916116,0.00052876,120]
[325243632,1714629033993,-500.0,0.00052876,120]
[325243633,1714629034002,-500.0,0.00052876,120]
[325243634,1714629034012,-500.0,0.00052876,120]
[325243635,1714629034021,-151.893182,0.00052876,7]
[325243636,1714629034030,-500.0,0.00052876,120]
[325243637,1714629034041,-500.0,0.00052876,120]
[325243638,1714629034053,-500.0,0.00052876,120]
[325243639,1714629034062,-500.0,0.00052876,30]
[325243640,1714629034074,-501.16257372,0.00052876,120]
[325243641,1714629034084,-395.47833111,0.00052876,120]
[325243642,1714629034094,-292.55344224,0.00052876,120]
[325243643,1714629034103,-1111.55,0.00052876,120]
[325243644,1714629034112,-151.0,0.00052876,7]
[325243645,1714629034123,-151.0,0.00052876,7]
[325243646,1714629034133,-151.0,0.00052876,7]
[325243647,1714629034142,-151.0,0.00052876,7]
[325243648,1714629034151,-500.0,0.00052876,120]
[325243649,1714629034159,-151.0,0.00052876,7]
[325243650,1714629034169,-151.0,0.00052876,7]
[325243651,1714629034178,-500.0,0.00052876,120]
[325243652,1714629034188,-151.0,0.00052876,7]
[325243653,1714629034197,-500.0,0.00052876,120]
[325243654,1714629034205,-151.0,0.00052876,7]
[325243655,1714629034215,-151.0,0.00052876,7]
[325243656,1714629034224,-151.0,0.00052876,7]
[325243657,1714629034232,-151.0,0.00052876,7]
[325243658,1714629034241,-151.0,0.00052876,7]
[325243659,1714629034250,-151.0,0.00052876,7]
[325243660,1714629034260,-151.0,0.00052876,7]
[325243661,1714629034270,-151.0,0.00052876,7]
[325243662,1714629034279,-151.0,0.00052876,7]
[325243663,1714629034288,-151.0,0.00052876,7]
[325243664,1714629034297,-151.0,0.00052876,7]
[325243665,1714629034306,-172.309209,0.00052876,7]
[325243666,1714629034315,-151.0,0.00052876,7]
[325243667,1714629034324,-500.0,0.00052876,120]
[325243668,1714629034333,-501.88679784,0.00052876,20]
[325243669,1714629034342,-500.0,0.00052876,120]
[325243670,1714629034352,-500.0,0.00052876,120]
[325243671,1714629034361,-506.46051375,0.00052876,120]
[325243672,1714629034370,-507.26397776,0.00052876,120]
[325243673,1714629034380,-500.0,0.00052876,120]
[325243674,1714629034389,-504.72394127,0.00052876,120]
[325243675,1714629034399,-209.78622473,0.00052876,120]
[325243676,1714629034408,-502.43845401,0.00052876,120]
[325243677,1714629034418,-500.0,0.00052876,120]
[325243678,1714629034429,-500.0,0.00052876,120]
[325243679,1714629034438,-500.0536974,0.00052876,120]
[325243680,1714629034447,-500.0,0.00052876,120]
[325243681,1714629034457,-151.0,0.00052876,7]
[325243682,1714629034466,-151.0,0.00052876,7]
[325243683,1714629034476,-151.0,0.00052876,7]
[325243684,1714629034485,-151.0,0.00052876,7]
[325243685,1714629034494,-151.0,0.00052876,7]
[325243686,1714629034503,-151.0,0.00052876,7]
[325243687,1714629034513,-151.0,0.00052876,7]
[325243688,1714629034522,-218.497983,0.00052876,7]
[325243689,1714629034531,-500.0,0.00052876,120]
[325243690,1714629034541,-504.15849961,0.00052876,120]
[325243691,1714629034550,-501.5647164,0.00052876,120]
[325243692,1714629034560,-500.0,0.00052876,120]
[325243693,1714629034569,-500.0,0.00052876,120]
[325243694,1714629034578,-503.16220699,0.00052876,120]
[325243695,1714629034587,-151.0,0.00052876,7]
[325243696,1714629034596,-151.0,0.00052876,7]
[325243697,1714629034606,-151.0,0.00052876,7]
[325243698,1714629034615,-151.0,0.00052876,7]
[325243699,1714629034625,-151.0,0.00052876,7]
[325243700,1714629034634,-151.0,0.00052876,7]
[325243701,1714629034645,-151.0,0.00052876,7]
[325243702,1714629034655,-151.0,0.00052876,7]
[325243703,1714629034664,-500.0,0.00052876,2]
[325243704,1714629034675,-502.28859977,0.00052876,120]
[325243705,1714629034684,-500.0,0.00052876,120]
[325243706,1714629034693,-501.84173575,0.00052876,120]
[325243707,1714629034702,-500.0,0.00052876,120]
[325243708,1714629034711,-500.0,0.00052876,120]
[325243709,1714629034720,-501.74789673,0.00052876,120]
[325243710,1714629034729,-500.0,0.00052876,120]
[325243711,1714629034739,-1397.53,0.00052876,120]
[325243712,1714629034748,-1245.13,0.00052876,120]
[325243713,1714629034758,-508.00883126,0.00052876,120]
[325243714,1714629034767,-168.036439,0.00052876,7]
[325243715,1714629034776,-168.036439,0.00052876,7]
[325243716,1714629034786,-168.036439,0.00052876,7]
[325243717,1714629034795,-168.036439,0.00052876,7]
[325243718,1714629034806,-168.036439,0.00052876,7]
[325243719,1714629034816,-168.036439,0.00052876,7]
[325243720,1714629034906,-168.036439,0.00052876,7]
[325243721,1714629034915,-500.0,0.00052876,120]
[325243722,1714629034926,-168.036439,0.00052876,7]
[325243723,1714629034935,-168.036439,0.00052876,7]
[325243724,1714629034945,-168.036439,0.00052876,7]
[325243725,1714629034954,-168.036439,0.00052876,7]
[325243726,1714629034964,-168.036439,0.00052876,7]
[325243727,1714629034973,-168.036439,0.00052876,7]
[325243728,1714629034983,-168.036439,0.00052876,7]
[325243729,1714629034992,-505.24544539,0.00052876,120]
[325243730,1714629035001,-168.036439,0.00052876,7]
[325243731,1714629035011,-168.036439,0.00052876,7]
[325243732,1714629035020,-506.92338901,0.00052876,120]
[325243733,1714629035030,-156.20157,0.00052876,7]
[325243734,1714629035040,-156.20157,0.00052876,7]
[325243735,1714629035053,-156.20157,0.00052876,7]
[325243736,1714629035062,-500.0,0.00052876,120]
[325243737,1714629035072,-156.20157,0.00052876,7]
[325243738,1714629035083,-156.20157,0.00052876,7]
[325243739,1714629035092,-156.20157,0.00052876,7]
[325243740,1714629035101,-156.20157,0.00052876,7]
[325243741,1714629035110,-156.20157,0.00052876,7]
[325243742,1714629035119,-156.20157,0.00052876,7]
[325243743,1714629035131,-156.20157,0.00052876,7]
[325243744,1714629035140,-156.20157,0.00052876,7]
[325243745,1714629035150,-156.20157,0.00052876,7]
[325243746,1714629035159,-156.20157,0.00052876,7]
[325243747,1714629035168,-156.20157,0.00052876,7]
[325243748,1714629035178,-156.20157,0.00052876,7]
[325243749,1714629035187,-156.20157,0.00052876,7]
[325243750,1714629035196,-168.42738392,0.00052876,120]
[325243751,1714629035205,-500.0,0.00052876,120]
[325243752,1714629035214,-503.22068469,0.00052876,120]
[325243753,1714629035224,-500.0,0.00052876,120]
[325243754,1714629035233,-502.12206867,0.00052876,120]
[325243755,1714629035242,-501.81711554,0.00052876,120]
[325243756,1714629035251,-500.0,0.00052876,120]
[325243757,1714629035260,-506.23688725,0.00052876,120]
[325243758,1714629035270,-500.0,0.00052876,120]
[325243759,1714629035279,-156.290401,0.00052876,7]
[325243760,1714629035288,-500.0,0.00052876,120]
[325243761,1714629035297,-156.290401,0.00052876,7]
[325243762,1714629035306,-500.0,0.00052876,120]
[325243763,1714629035315,-500.0,0.00052876,120]
[325243764,1714629035324,-156.290401,0.00052876,7]
[325243765,1714629035333,-500.0,0.00052876,120]
[325243766,1714629035342,-156.290401,0.00052876,7]
[325243767,1714629035351,-500.0,0.00052876,120]
[325243768,1714629035360,-156.290401,0.00052876,7]
[325243769,1714629035370,-506.46027596,0.00052876,120]
[325243770,1714629035379,-500.0,0.00052876,120]
[325243771,1714629035388,-156.290401,0.00052876,7]
[325243772,1714629035396,-500.0,0.00052876,120]
[325243773,1714629035406,-500.0,0.00052876,120]
[325243774,1714629035414,-156.290401,0.00052876,7]
[325243775,1714629035423,-156.290401,0.00052876,7]
[325243776,1714629035432,-156.290401,0.00052876,7]
[325243777,1714629035441,-156.290401,0.00052876,7]
[325243778,1714629035449,-156.290401,0.00052876,7]
[325243779,1714629035458,-302.048218,0.00052876,120]
[325243780,1714629035468,-156.290401,0.00052876,7]
[325243781,1714629035477,-156.290401,0.00052876,7]
[325243782,1714629035485,-156.290401,0.00052876,7]
[325243783,1714629035494,-156.290401,0.00052876,7]
[325243784,1714629035503,-156.290393,0.00052876,7]
[325243785,1714629035512,-500.0,0.00052876,120]
[325243786,1714629035521,-500.0,0.00052876,120]
[325243787,1714629035530,-500.0,0.00052876,120]
[325243788,1714629035539,-500.0,0.00052876,120]
[325243789,1714629035548,-500.0,0.00052876,120]
[325243790,1714629035556,-500.0,0.00052876,120]
[325243791,1714629035566,-500.0,0.00052876,120]
[325243792,1714629035575,-506.9208206,0.00052876,120]
[325243793,1714629035583,-502.20692186,0.00052876,120]
[325243794,1714629035593,-500.0,0.00052876,120]
[325243795,1714629035602,-151.0,0.00052876,7]
[325243796,1714629035611,-151.0,0.00052876,7]
[325243797,1714629035620,-151.0,0.00052876,7]
[325243798,1714629035629,-151.0,0.00052876,7]
[325243799,1714629035638,-151.0,0.00052876,7]
[325243800,1714629035647,-151.0,0.00052876,7]
[325243801,1714629035656,-151.0,0.00052876,7]
[325243802,1714629035665,-151.0,0.00052876,7]
[325243803,1714629035675,-151.0,0.00052876,7]
[325243804,1714629035684,-502.82323782,0.00052876,120]
[325243805,1714629035693,-151.0,0.00052876,7]
[325243806,1714629035702,-246.070908,0.00052876,7]
[325243807,1714629035711,-502.77758943,0.00052876,120]
[325243808,1714629035720,-542.66093815,0.00052876,120]
[325243809,1714629035729,-500.0,0.00052876,120]
[325243810,1714629035739,-535.29807833,0.00052876,120]
[325243811,1714629035748,-502.15133571,0.00052876,120]
[325243812,1714629035757,-500.0,0.00052876,120]
[325243813,1714629035767,-504.96654153,0.00052876,120]
[325243814,1714629035776,-500.0,0.00052876,120]
[325243815,1714629035785,-500.0,0.00052876,120]
[325243816,1714629035794,-500.0,0.00052876,7]
[325243817,1714629035803,-500.0,0.00052876,120]
[325243818,1714629035812,-609.29553547,0.00052876,120]
[325243819,1714629035821,-500.0,0.00052876,120]
[325243820,1714629035831,-13560.47168464,0.00052876,120]
[325243854,1714629038482,-258.051194,0.00052875,7]
[325243855,1714629038492,-21387.28831536,0.00052876,120]
[325243856,1714629038501,-3438.96,0.00052876,120]
[325243857,1714629038510,-500.0,0.00052876,120]
[325243858,1714629038519,-151.0,0.00052876,7]
[325243859,1714629038528,-151.517322,0.00052876,7]
[325243860,1714629038538,-500.0,0.00052876,120]
[325243861,1714629038548,-500.0,0.00052876,120]
[325243862,1714629038557,-500.0,0.00052876,120]
[325243863,1714629038567,-500.0,0.00052876,120]
[325243864,1714629038576,-947.25,0.00052876,120]
[325243865,1714629038585,-500.0,0.00052876,120]
[325243866,1714629038595,-500.0,0.00052876,120]
[325243867,1714629038604,-1241.9,0.00052876,120]
[325243868,1714629038613,-500.0,0.00052876,120]
[325243869,1714629038622,-1900.55,0.00052876,120]
[325243870,1714629038631,-503.42125565,0.00052876,120]
[325243871,1714629038641,-158.836761,0.00052876,7]
[325243872,1714629038650,-500.0,0.00052876,120]
[325243873,1714629038659,-500.0,0.00052876,21]
[325243874,1714629038669,-244.37070995,0.00052876,120]
[325243875,1714629038679,-151.0,0.00052876,7]
[325243876,1714629038689,-151.0,0.00052876,7]
[325243877,1714629038698,-940.11,0.00052876,120]
[325243878,1714629038707,-500.0,0.00052876,120]
[325243879,1714629038717,-151.0,0.00052876,7]
[325243880,1714629038726,-151.0,0.00052876,7]
[325243881,1714629038735,-151.0,0.00052876,7]
[325243882,1714629038743,-151.0,0.00052876,7]
[325243883,1714629038753,-151.0,0.00052876,7]
[325243884,1714629038762,-172.756797,0.00052876,7]
[325243885,1714629038771,-205.666842,0.00052876,7]
[325243886,1714629038780,-576.62,0.00052876,120]
[325243887,1714629038789,-500.0,0.00052876,120]
[325243888,1714629038799,-500.0,0.00052876,120]
[325243889,1714629038808,-155.37,0.00052876,120]
[325243890,1714629038817,-500.0,0.00052876,120]
[325243891,1714629038826,-500.0,0.00052876,120]
[325243892,1714629038835,-332.77756808,0.00052876,120]
[325243893,1714629038844,-2330.83,0.00052876,30]
[325243894,1714629038853,-1116.37,0.00052876,120]
[325243895,1714629038863,-500.0,0.00052876,120]
[325243896,1714629038872,-500.0,0.00052876,120]
[325243897,1714629038881,-151.0,0.00052876,7]
[325243898,1714629038890,-151.0,0.00052876,7]
[325243899,1714629038900,-151.0,0.00052876,7]
[325243900,1714629038910,-151.0,0.00052876,7]
[325243901,1714629038919,-184.309377,0.00052876,7]
[325243902,1714629038930,-799.49,0.00052876,120]
[325243903,1714629038939,-500.0,0.00052876,120]
[325243904,1714629038948,-500.0,0.00052876,2]
[325243905,1714629038958,-500.0,0.00052876,120]
[325243906,1714629038967,-500.0,0.00052876,120]
[325243907,1714629038976,-552.6,0.00052876,120]
[325243908,1714629038985,-151.0,0.00052876,7]
[325243909,1714629038994,-303.61875642,0.00052876,120]
[325243948,1714629044136,-196.38124358,0.00052876,120]
[325243949,1714629044146,-151.0,0.00052876,7]
[325243951,1714629044156,-151.0,0.00052876,7]
[325243952,1714629044165,-151.0,0.00052876,7]
[325243953,1714629044176,-151.0,0.00052876,7]
[325243954,1714629044185,-500.0,0.00052876,120]
[325243955,1714629044194,-151.0,0.00052876,7]
[325243956,1714629044204,-151.0,0.00052876,7]
[325243957,1714629044213,-151.0,0.00052876,7]
[325243958,1714629044223,-236.658094,0.00052876,7]
[325243959,1714629044232,-267.35336191,0.00052876,120]
[325243976,1714629065146,997.93710649,0.00013698,2]
[325243977,1714629066849,1879.86291368,0.00020913,2]
[325243980,1714629144617,507.80022118,0.00020913,2]
[325243989,1714629682337,234.36,0.00022,10]
[325244019,1714630232893,-279.870394,0.00028493,2]
[325244020,1714630232904,-179.404099,0.00028493,2]
[325244021,1714630232915,-24900.0,0.00031881,2]
[325244022,1714630232924,-166.48960871,0.00034103,2]
[325244023,1714630232934,-279.870394,0.00034203,2]
[325244024,1714630232943,-150.6,0.00036318,3]
[325244025,1714630232953,-279.870394,0.00039913,2]
[325244026,1714630233091,-279.870394,0.00045624,2]
[325244027,1714630233109,-22142.51089718,0.0005,7]
[325244028,1714630233121,-728.475,0.0005,7]
[325244058,1714630238950,-2877.80002117,0.0005,7]
[325244144,1714630246448,-539.22978156,0.0005,7]
[325244165,1714631432696,-179.404099,0.00028493,2]
[325244167,1714631432705,-163.363263,0.00028493,2]
[325244168,1714631432715,-763.08263801,0.00033,4]
[325244209,1714631438816,-584.42,0.00033,4]
[325244242,1714631440863,-285.69286827,0.00033,4]
[325244244,1714631440874,-163.363263,0.00035274,2]
[325244246,1714631440884,-179.3,0.0003643,3]
[325244248,1714631440894,-543.97551782,0.000375,4]
[325244250,1714631440903,-2000.0,0.0004,10]
[325244252,1714631440913,-163.363263,0.00042055,2]
[325244254,1714631440923,-4999.999999,0.00045454,30]
[325244256,1714631440932,-24900.0,0.000465,2]
[325244258,1714631440942,-163.363263,0.00048836,2]
[325244260,1714631440951,-23711.98430009,0.0005,7]
[325244262,1714631440961,-10588.1,0.0005,2]
[325244264,1714631440970,-151.0,0.0005,120]
[325244266,1714631440979,-2000.0,0.0005,2]
[325244268,1714631440988,-303.86860129,0.0005,15]
[325244270,1714631440998,-279.870394,0.00051334,2]
[325244272,1714631441007,-500.0,0.00051876,120]
[325244274,1714631441016,-500.0,0.00051876,120]
[325244276,1714631441025,-500.0,0.00051876,120]
[325244278,1714631441034,-307.66,0.00051876,120]
[325244279,1714631441043,-500.0,0.00051876,120]
[325244281,1714631441052,-241.04035742,0.00052,120]
[325244284,1714631441062,-1000.0,0.0005261,14]
[325244285,1714631441071,-1000.0,0.00052619,14]
[325244287,1714631441081,-1000.0,0.00052626,14]
[325244288,1714631441090,-302.08175737,0.00052669,14]
[325244289,1714631441099,-499.36491041,0.00052675,14]
[325244290,1714631441109,-1000.0,0.00052703,14]
[325244291,1714631441118,-1000.0,0.00052707,14]
[325244292,1714631441127,-1000.0,0.00052717,14]
[325244293,1714631441137,-1000.0,0.00052757,14]
[325244294,1714631441146,-14.98362798,0.0005276,14]
[325244295,1714631441158,-985.01637202,0.0005276,14]
[325244296,1714631441167,-591.50454728,0.00052776,2]
[325244297,1714631441177,-314.0,0.000528,31]
[325244298,1714631441185,-1000.0,0.00052802,14]
[325244299,1714631441193,-1000.0,0.00052839,14]
[325244300,1714631441203,-502.03413034,0.00052876,120]
[325244301,1714631441213,-504.19302595,0.00052876,120]
[325244302,1714631441222,-503.06591022,0.00052876,120]
[325244303,1714631441232,-500.0,0.00052876,120]
[325244304,1714631441246,-503.14315295,0.00052876,120]
[325244305,1714631441255,-500.0,0.00052876,120]
[325244306,1714631441264,-517.95525095,0.00052876,120]
[325244307,1714631441274,-502.99412912,0.00052876,3]
[325244308,1714631441283,-504.69484145,0.00052876,120]
[325244309,1714631441294,-500.65308731,0.00052876,120]
[325244311,1714631441304,-500.0,0.00052876,120]
[325244312,1714631441313,-500.0,0.00052876,120]
[325244313,1714631441323,-500.0,0.00052876,120]
[325244314,1714631441332,-500.0,0.00052876,120]
[325244316,1714631441341,-492.88583195,0.00052876,120]
[325244318,1714631441350,-502.74348434,0.00052876,120]
[325244319,1714631441360,-187.41987059,0.00052876,120]
[325244320,1714631441370,-500.0,0.00052876,120]
[325244321,1714631441379,-500.0,0.00052876,120]
[325244322,1714631441389,-500.0,0.00052876,120]
[325244323,1714631441398,-529.58,0.00052876,120]
[325244324,1714631441408,-500.0,0.00052876,120]
[325244325,1714631441418,-500.0,0.00052876,120]
[325244326,1714631441427,-751.35,0.00052876,120]
[325244327,1714631441436,-500.0,0.00052876,120]
[325244328,1714631441446,-500.0,0.00052876,120]
[325244329,1714631441456,-500.0,0.00052876,120]
[325244330,1714631441465,-151.0,0.00052876,7]
[325244331,1714631441475,-151.0,0.00052876,7]
[325244332,1714631441484,-1000.0,0.00052876,120]
[325244333,1714631441494,-500.0,0.00052876,120]
[325244334,1714631441504,-500.0,0.00052876,120]
[325244335,1714631441513,-599.77,0.00052876,120]
[325244336,1714631441522,-500.0,0.00052876,120]
[325244337,1714631441532,-500.0,0.00052876,120]
[325244338,1714631441545,-500.0,0.00052876,120]
[325244339,1714631441554,-500.0,0.00052876,120]
[325244340,1714631441563,-151.0,0.00052876,7]
[325244341,1714631441572,-500.0,0.00052876,120]
[325244342,1714631441581,-151.0,0.00052876,7]
[325244343,1714631441590,-151.0,0.00052876,7]
[325244344,1714631441600,-151.0,0.00052876,7]
[325244345,1714631441609,-151.0,0.00052876,7]
[325244346,1714631441618,-151.0,0.00052876,7]
[325244347,1714631441627,-151.0,0.00052876,7]
[325244348,1714631441636,-151.0,0.00052876,7]
[325244349,1714631441645,-1061.34,0.00052876,120]
[325244350,1714631441654,-500.0,0.00052876,120]
[325244351,1714631441762,-500.0,0.00052876,2]
[325244352,1714631441772,-500.0,0.00052876,120]
[325244353,1714631441781,-1096.17,0.00052876,120]
[325244354,1714631441793,-500.0,0.00052876,120]
[325244355,1714631441803,-500.0,0.00052876,120]
[325244356,1714631441812,-500.0,0.00052876,120]
[325244357,1714631441821,-500.0,0.00052876,120]
[325244358,1714631441830,-1339.3,0.00052876,120]
[325244359,1714631441839,-500.0,0.00052876,2]
[325244360,1714631441848,-1193.25,0.00052876,120]
[325244361,1714631441857,-500.0,0.00052876,120]
[325244362,1714631441867,-500.0,0.00052876,120]
[325244363,1714631441876,-606.30884847,0.00052876,120]
[325244364,1714631441885,-500.0,0.00052876,120]
[325244365,1714631441895,-500.0,0.00052876,120]
[325244366,1714631441904,-500.0,0.00052876,120]
[325244367,1714631441919,-500.0,0.00052876,120]
[325244368,1714631441928,-500.0,0.00052876,120]
[325244369,1714631441937,-500.0,0.00052876,120]
[325244370,1714631441947,-151.0,0.00052876,7]
[325244371,1714631441956,-151.935723,0.00052876,7]
[325244372,1714631441965,-500.0,0.00052876,120]
[325244373,1714631441974,-1111.55,0.00052876,120]
[325244374,1714631441983,-500.0,0.00052876,120]
[325244375,1714631441992,-500.0,0.00052876,120]
[325244376,1714631442001,-500.0,0.00052876,120]
[325244377,1714631442010,-500.0,0.00052876,120]
[325244378,1714631442020,-303.13410495,0.00052876,120]
[325244379,1714631442029,-151.51722,0.00052876,7]
[325244380,1714631442038,-500.0,0.00052876,120]
[325244381,1714631442049,-500.0,0.00052876,120]
[325244382,1714631442058,-500.0,0.00052876,120]
[325244383,1714631442067,-500.0,0.00052876,120]
[325244384,1714631442076,-169.24504741,0.00052876,7]
[325244410,1714632363723,1001.2482026,0.00019178,2]
[325244411,1714632363751,1001.2482026,0.00019178,2]
[325244412,1714632363780,997.5035948,0.00019178,2]
[325244413,1714632363804,3.7446078,0.00019178,2]
[325244414,1714632363831,1001.2482026,0.00019178,2]
[325244415,1714632363859,1001.2482026,0.00019178,2]
[325244416,1714632363887,1001.2482026,0.00019178,2]
[325244417,1714632363915,1001.2482026,0.00019178,2]
[325244418,1714632363943,1001.2482026,0.00019178,2]
[325244419,1714632363972,1001.2482026,0.00019178,2]
[325244420,1714632363998,1001.2482026,0.00019178,2]
[325244421,1714632364033,1001.2482026,0.00019178,2]
[325244422,1714632364062,1001.2482026,0.00019178,2]
[325244423,1714632364097,1001.2482026,0.00019178,2]